Cogmind - Beta 14 @@@ ROGUE MODE // 2024.08.09 @ 20:06:35 Player: Findu Result: Destroyed by YI-UF0 with YI-UF0's Doublenader Performance ------------- Evolutions (0) 0 Regions Visited (2) 400 Robots Destroyed (11) 55 Value Destroyed (194) 194 Prototype IDs (1) 20 Alien Tech Used (0) 0 Bonus (0) 0 TOTAL SCORE: 669 Bonus ------- None Cogmind --------- Core Integrity 0/250 Matter 202/300 Energy 98/125 System Corruption 1% Temperature Cool (0) Movement Rolling (100) Location -10/Mines Parts ------- > --- POWER (1) -------- Light Ion Engine > --- PROPULSION (2) --- Compact Wheel > --- UTILITY (2) ------ Small Storage Unit Signal Interpreter > --- WEAPON (2) ------- Hammer > --- INVENTORY (8) ---- Heat Sink Sensor Array Sensor Drone Bay Peak State ------------ > --- POWER ------------ Improved Ion Engine > --- PROPULSION ------- Light Treads Compact Wheel > --- UTILITY ---------- Small Storage Unit Signal Interpreter > --- WEAPON ----------- Improved Assault Rifle Improved Assault Rifle > --- INVENTORY -------- Light Ion Engine Light Treads Compact Wheel Heat Sink Visual Processing Unit Light Armor Plating Improved Assault Rifle Hammer [Rating: 13] Favorites ----------- Power Improved Ion Engine Engine Improved Ion Engine Propulsion Compact Wheel Treads Light Treads Wheel Compact Wheel Utility Small Storage Unit Storage Small Storage Unit Processor Signal Interpreter Protection Light Armor Plating Weapon Improved Assault Rifle Ballistic Gun Improved Assault Rifle Launcher Grenade Launcher Impact Weapon Hammer Build | -11 -10 -10 ------- Run | Yrd Mat Min Slots Evolved . | . . . Power . | . . . Propulsion . | . . . Utility . | . . . Weapon . | . . . Parts Attached 29 | 7 13 9 Power 4 | 2 . 2 Engine 4 | 2 . 2 Core . | . . . Reactor . | . . . Propulsion 7 | 2 2 3 Treads 4 | 1 1 2 Leg . | . . . Wheel 3 | 1 1 1 Hover . | . . . Flight . | . . . Utility 3 | 1 2 . Device . | . . . Storage 1 | 1 . . Processor 1 | . 1 . Hackware . | . . . Protection 1 | . 1 . Artifact . | . . . Weapon 15 | 2 9 4 Energy Gun . | . . . Energy Cannon . | . . . Ballistic Gun 11 | 2 9 . Ballistic Cannon . | . . . Launcher 2 | . . 2 Special Weapon . | . . . Impact Weapon 2 | . . 2 Slashing Weapon . | . . . Piercing Weapon . | . . . Special Melee Weapon . | . . . Unidentified Prototypes 1 | . 1 . Parts Lost 8 | . . 8 Power 1 | . . 1 Propulsion 3 | . . 3 Utility . | . . . Weapon 4 | . . 4 Highest Loss Streak 6 | . . 6 To Critical Strikes . | . . . Average Slot Usage (%) 96 | . 93 98 Engine 14 | . 14 14 Treads 13 | . 13 13 Wheel 13 | . 13 14 Storage 14 | . 14 14 Processor 11 | . 7 14 Ballistic Gun 26 | . 27 25 Peak Build Rating 13 | 6 12 13 Average Rating 10 | 4 8 12 On Entrance 6 | . 6 12 Naked Turns . | . . . Heaviest Build 18 | 13 17 18 Greatest Support 20 | 16 20 20 Greatest Overweight (x) 5 | . 3 5 Average Overweight (x) . | . . . Largest Inventory Capacity 8 | 8 8 8 Average Capacity 7 | 6 8 8 Most Carried 8 | 3 8 8 Average Carried 6 | 2 6 7 Final Capacity 8 | 8 8 8 Final Carried 8 | 3 8 3 Class Distribution -------------------- 100% | Mutant Dominant Class ---------------- Mutant | -10/Materials Mutant | -10/Mines Resources | -11 -10 -10 ----------- Run | Yrd Mat Min Matter Collected 578 | 256 146 176 Remotely . | . . . Salvage Created 280 | . 263 17 Parts 16 | . 16 . Haulers Intercepted . | . . . Recyclers Shooed . | . . . Parts Field Recycled . | . . . Retrieved Matter . | . . . Parts Self-Destructed . | . . . Prevented . | . . . Kills | -11 -10 -10 ------- Run | Yrd Mat Min Combat Hostiles Destroyed 16 | . 9 7 Melee 1 | . . 1 Guns 9 | . 9 . AOE 6 | . . 6 Classes Destroyed 4 | . 3 1 Watcher 2 | . 2 . Swarmer 6 | . 6 . Grunt 3 | . 3 . Assembled 7 | . . 7 Best Kill Streak 7 | . 6 7 Combat Bots Only 7 | . 6 7 Max Kills in Single Turn 3 | . 1 3 Gunslinging . | . . . Exploded 3 | . . 3 Melee 1 | . . 1 Uniques/NPCs Destroyed . | . . . Combat | -11 -10 -10 -------- Run | Yrd Mat Min Hostile Shots Fired 98 | . 45 53 Missed 32 | . 16 16 Damage Taken 1248 | . 241 1007 Core 256 | . 33 223 Absorbed by Shields . | . . . Core Remaining (%) 100 | 100 . . Volleys Fired 35 | . 31 4 Largest 2 | . 2 2 Hottest 60 | . 43 60 Shots Fired 69 | . 62 7 Gun 65 | . 62 3 Cannon . | . . . Launcher 4 | . . 4 Special . | . . . Kinetic 65 | . 62 3 Thermal . | . . . Explosive 4 | . . 4 Electromagnetic . | . . . Robot Hit Streak 10 | . 10 4 Robot Miss Streak 3 | . 3 2 Penetration Max . | . . . Secondary Targets . | . . . Shots Hit Robots 42 | . 36 6 Core Hits 23 | . 15 8 Critical Kills . | . . . Critical Parts Destroyed . | . . . Critical Strikes . | . . . Melee Attacks 4 | . . 4 Impact 4 | . . 4 Slashing . | . . . Piercing . | . . . Sneak Attacks . | . . . Combat Hostiles . | . . . Follow-up Attacks . | . . . Damage Inflicted 784 | . 433 351 Guns 448 | . 433 15 Cannons . | . . . Explosions 310 | . . 310 Melee 26 | . . 26 Ramming . | . . . Kinetic 448 | . 433 15 Thermal . | . . . Explosive 310 | . . 310 Electromagnetic . | . . . Impact 26 | . . 26 Slashing . | . . . Piercing . | . . . Highest Corruption 1 | . 1 1 Average Corruption 1 | . 1 1 Corruption Purged . | . . . Corruption Blocked . | . . . Effects 8 | . 1 7 Message Errors 2 | . . 2 Matter Fused 4 | . . 4 Heat Flow Errors 1 | . 1 . Energy Discharges 1 | . . 1 Overload Shots . | . . . Overflow Damage 22 | . . 22 Projectiles . | . . . Explosions 22 | . . 22 Melee . | . . . Knockbacks . | . . . Impact . | . . . Kinetic . | . . . Secondary . | . . . Self-Inflicted Damage 23 | . . 23 Shots 1 | . . 1 Rammed . | . . . Targets Rammed . | . . . Kicked . | . . . Crushed . | . . . Highest Temperature 252 | . 252 4 Average Temperature 67 | . 90 2 Received Heat Transfer 93 | . 24 69 Siege Activations . | . . . Robots Corrupted . | . . . Combat Hostiles . | . . . Parts Fried . | . . . Impact Corruptions . | . . . Robots Melted . | . . . Combat Hostiles . | . . . Parts Melted . | . . . Heat Transferred . | . . . Parts Sabotaged . | . . . Parts Stolen . | . . . Parts Stripped . | . . . Power Chain Reactions . | . . . Alert | -11 -10 -10 ------- Run | Yrd Mat Min Peak Influence 287 | . 287 48 Initial 33 | . . 33 Average 69 | . 137 28 Maximum Alert Level 1 | . 1 . Low Security (%) 83 | 100 58 100 Level 1 16 | . 41 . Level 2 . | . . . Level 3 . | . . . Level 4 . | . . . Level 5 . | . . . High Security . | . . . Max Security . | . . . Squads Dispatched 2 | . 2 . Investigation 1 | . 1 . Extermination . | . . . Reinforcement 1 | . 1 . Assault . | . . . Garrison . | . . . Intercept . | . . . Searches Triggered . | . . . Construction Impeded . | . . . Haulers Reinforced . | . . . Active Scanning Responses . | . . . Cargo Convoy Interrupts . | . . . Stealth | -11 -10 -10 --------- Run | Yrd Mat Min Distress Signals . | . . . Communications Jammed . | . . . Distress Signals . | . . . Times Spotted 31 | . 15 16 Peak Tracking Total 12 | . 4 12 Tactical Retreats 1 | . 1 . Traps | -11 -10 -10 ------- Run | Yrd Mat Min Traps Triggered 4 | . 4 . Indirectly . | . . . Trap Hack Attempts . | . . . Triggered . | . . . Disarmed . | . . . Reprogrammed . | . . . Reused . | . . . Traps Extracted . | . . . Installed . | . . . Triggered . | . . . Machines | -11 -10 -10 ---------- Run | Yrd Mat Min Machines Disabled 1 | . . 1 Max in Single Turn 1 | . . 1 Machines Repaired . | . . . Machines Dismantled . | . . . Machines Sabotaged . | . . . Overloaded Fab Kills . | . . . Hacking | -11 -10 -10 --------- Run | Yrd Mat Min Machines Accessed 5 | . 4 1 Terminals 3 | . 3 . Fabricators . | . . . Repair Stations . | . . . Recycling Units 1 | . 1 . Scanalyzers . | . . . Garrison Access . | . . . Total Hacks 12 | . 11 1 Successful 4 | . 3 1 Failed 8 | . 8 . Catastrophic 2 | . 2 . Database Lockouts . | . . . Manual . | . . . Terminals 10 | . 10 . Fabricators . | . . . Repair Stations . | . . . Recycling Units 1 | . 1 . Scanalyzers . | . . . Garrison Access . | . . . Terminal Hacks 3 | . 2 1 Open Door 1 | . . 1 Registered Components 1 | . 1 . Zone Layout 1 | . 1 . Fabricator Hacks . | . . . Repair Station Hacks . | . . . Recycling Unit Hacks 1 | . 1 . Report Inventory 1 | . 1 . Scanalyzer . | . . . Garrison Access Hacks . | . . . Unauthorized Hacks . | . . . Terminals . | . . . Fabricators . | . . . Repair Stations . | . . . Recycling Units . | . . . Scanalyzers . | . . . Garrison Access . | . . . Data Cores Recovered . | . . . Used . | . . . Hacking Detections 3 | . 3 . Full Trace Events 1 | . 1 . Feedback Events . | . . . Feedback Blocked . | . . . Robot Schematics Acquired . | . . . Robots Built . | . . . Authchips . | . . . Time . | . . . Total Robot Build Rating . | . . . Part Schematics Acquired . | . . . Parts Built . | . . . Authchips . | . . . Time . | . . . Total Part Build Rating . | . . . Parts Repaired . | . . . Time . | . . . Parts Recycled . | . . . Recycled Matter . | . . . Retrieved Matter . | . . . Retrieved Components . | . . . Parts Scanalyzed . | . . . Part Schematics Acquired . | . . . Parts Damaged . | . . . Bothacking | -11 -10 -10 ------------ Run | Yrd Mat Min Used RIF Installer . | . . . Robots Hacked . | . . . Non-combat . | . . . Combat . | . . . Robot Hacks Applied . | . . . Relay Couplers Released . | . . . Fabnet Peak Effective % . | . . . Robots Rewired . | . . . Allies Hacked . | . . . Hacks Repelled . | . . . Allies | -11 -10 -10 -------- Run | Yrd Mat Min Total Allies . | . . . Largest Group . | . . . Highest-Rated Group . | . . . Highest-Rated Ally . | . . . Total Orders . | . . . Ally Attacks . | . . . Total Damage . | . . . Kills . | . . . Allies Corrupted . | . . . Allies Melted . | . . . Intel | -11 -10 -10 ------- Run | Yrd Mat Min Robot Analysis Total . | . . . Derelict Logs Recovered 2 | . . 2 Drone Launches . | . . . Drone Recoveries . | . . . Exploration | -11 -10 -10 ------------- Run | Yrd Mat Min Turns Passed 1204 | 55 467 682 Spaces Moved 771 | 42 305 424 Core 5 | 3 1 1 Treads 413 | . 60 353 Legs . | . . . Wheels 353 | 39 244 70 Hover . | . . . Flight . | . . . Fastest Speed 50 | 50 100 100 Average Speed 133 | 96 113 151 Slowest Speed 300 | 100 200 300 Overloaded Moves . | . . . Propulsion Burnouts . | . . . Robots Hopped . | . . . Cave-ins Triggered . | . . . Exploration Rate (%) 46 | 4 55 81 Regions Visited 2 Branch Regions 1 Pre-discovered Areas 1 | . . 1 Known Exits Taken 1 | . 1 . Unknown Exits Taken 1 | 1 . . Scrap Searched 1 | . . 1 Spaces Dug . | . . . Terrain Destroyed 13 | . . 13 Melee . | . . . Projectile . | . . . AOE 13 | . . 13 Terrain Rammed . | . . . Walls Destroyed . | . . . Machines Disabled . | . . . Actions | -11 -10 -10 --------- Run | Yrd Mat Min Total 875 | 53 369 453 Wait 14 | 3 7 4 Move 769 | 41 304 424 Hop . | . . . Pick Up 11 | 2 6 3 Fast Attach 18 | 6 11 1 Attach 6 | . 1 5 Detach 3 | . 3 . Swap 5 | 1 1 3 Drop 10 | . 5 5 Fire 35 | . 31 4 Melee 4 | . . 4 Ram . | . . . Kick . | . . . Crush . | . . . Escape Stasis . | . . . Rewire . | . . . Trap . | . . . Miscellaneous . | . . . Route ------- -11/Scrapyard -10/Materials (discovered 3 exits: *Mat x2 / *Min) -10/Mines (discovered 3 exits: *Mat x2 / *Exi) History --------- Turn | Location | Event 26 | -11/Scrapyard | Discovered new exit (range 16) 56 | -11/Scrapyard | Entered Materials 213 | -10/Materials | Discovered new exit (range 13) 282 | -10/Materials | Identified exit to Materials 320 | -10/Materials | Build established: Mutant 364 | -10/Materials | Discovered exit to Materials (range 16) 471 | -10/Materials | Discovered new exit (range 16) 493 | -10/Materials | Identified exit to Mines 523 | -10/Materials | Entered Mines 531 | -10/Mines | Joined a pair of Derelicts in attacking an 0b10 outpost 611 | -10/Mines | Discovered exit to Materials (range 9) 771 | -10/Mines | Learned location of 2 exits from Materials 773 | -10/Mines | Learned Materials stockpile data 819 | -10/Mines | YI-UF0 nonchalantly dropped a Grenade Launcher on the ground 839 | -10/Mines | Found the Drone Emporium 846 | -10/Mines | Found Prototype Device 874 | -10/Mines | Discovered exit to Materials (range 13) 908 | -10/Mines | Deemed a non-threat by the Exiles lab entrance 908 | -10/Mines | Discovered new exit (range 5) 914 | -10/Mines | Identified exit to Exiles 1106 | -10/Mines | Assembled infested the area 1151 | -10/Mines | Core integrity fell below 50% 1162 | -10/Mines | Learned location of Storage (-8) 1198 | -10/Mines | Destroyed 7 combat bots 1202 | -10/Mines | Core integrity fell below 20% 1205 | -10/Mines | Destroyed by YI-UF0 with YI-UF0's Doublenader Last Messages --------------- 01164_ A5-HTR(g) slips back into the shadows. 01168_ System corrupted: Matter fused (-10). 01170_ as-28471 destroyed. 01174_ as-52379 destroyed. 01174_ as-64795 destroyed. 01174_ as-15685 destroyed. 01175_ Com. Wheel destroyed. 01177_ Imp. Assault Rifle destroyed. 01177_ as-20241 destroyed. 01177_ as-70061 destroyed. 01177_ Destroyed Asb. Hover Unit. 01177_ as-24138 destroyed. 01181_ The unstable cave ceiling collapses. 01190_ Acquired 4 matter. 01194_ Acquired Mni. Grenade Launcher. 01197_ Mni. Grenade Launcher destroyed. 01197_ Grenade Launcher destroyed. 01201_ Imp. Ion Engine destroyed. 01202_ The unstable cave ceiling collapses. 01205_ Lgt. Treads destroyed. Map ----- +----------------------------------------------------+ | ?????????????????#####??????# #????????????? | | ?????????????????????????#### #????????????? | | ?????????????????????????# # #????????????? | | ?????????????????????????# #????????????? | | ?????????????????????????# [##???????????? | | ???????????????????????#### #???????????? | | ??????????????????????##""## " ##??????????? | | ??????????????????????#" #"%" ###????????? | | ??????????????????????#" ! " ##???????? | | ??????????????????????#" #???????? | | ??????????????????????#" #X ######### | | ??????????????????????##""## [ | | ??????#####????????????###### [%= | | ???#### ##?????????????### ! #### #### | | ??## #?????????????# #??#??? | | ??# #????####?????# # #?????? | | ??# ##??## ####### #?????? | | ???# #### #?????? | | ???# ## #### #?????? | | ???# # ## ### ?? | | ???# # # ? | | ???# # ####### # ? | | ???# ### # ###?###### ? | | ???## ## # * ##?????? ? | | ????##### #??????? % ? | | ????????# @ = #?????? * #? | | ????????# #?????? ?? | | ????????# # g #?????? #?? | | ????????# ### % ????? ???? | | ????????### ??# ?????????? | | ??????????# ??# ??????????? | | ??????????# #?? # ????# ??? | | ??????????# ##??? # ###### ?????# | | ?????????? ????## ### ??????#???????????# | | ?????????###?????# #?? #?????????????????# | | ????????????????? ??? *% ????????????????# | | ????????????????? ??? #??????????????# | | ????????????????? ???? ###?????????????# | | ????????????????? ???? ????????????????# # | | ????????????????# ???? ?????????????????###? | | ?????????????????# ?????????????????????????? | | ????????????????????????????????????????????? | | ????????????????????????????????????????????? | | ????????????????????????????????????????????? | | ????????????????????????????????????????????? | | | | | | | | | | | +----------------------------------------------------+ Best States ------------- Heat Dissipation 25 Energy Generation 12 Energy Capacity 265 Matter Stores 300 Matter Capacity 300 Sight Range 16 Terrain Scan Density 10 Armor Coverage 150 Evasion (%) 40 Recoil Reduction 1 Item Schematics ----------------- None Robot Schematics ------------------ None Fabricated ------------ Nothing Alien Tech Used ----------------- None Achievements -------------- None Challenges ------------ None Game ------ Seed BlastSuperdenseCutter Manual? 0 Play Time 00:12:27 Cumulative 44.8 hours Start 2024.08.09 @ 19:54:53 End 2024.08.09 @ 20:06:35 Sessions 1 Manual Loads 0 Difficulty Rogue Special Mode None Game No. 29 Rogue 22 Adventurer 7 Explorer 0 Win Type - Total 0 Types 0/0/0/0/0/0/0/0/0 Lore% 24 Gallery% 39 Achievement% 32 Wizard Run 0 Options --------- Layout 0 ASCII 0 Keyboard 1 Movement Vi Keybinds 0 Fullscreen 2 Font 24/Terminus Map View 76x50 Zoom Use 0% Tactical HUD 1 Map Filters NONE Filters NONE Steam 1 RUN: e5688729-dc4b-489f-a774-d9991a34a8d4